[Event "Marmaris Karya-19 GM-May 2022"]
[Site "Icmeler-Marmaris"]
[Date "2022.05.15"]
[Round "5.2"]
[White "Gunduz, Umut Erdem"]
[Black "Sevdimaliyev, Urfan"]
[Result "1/2-1/2"]
[ECO "B38"]
[WhiteElo "2316"]
[BlackElo "2331"]
[Annotator "TA"]
[PlyCount "70"]
[EventDate "2022.05.15"]
[EventType "schev"]
[EventCountry "TUR"]
[SourceTitle "playchess.com"]
[Source "ChessBase"]
[SourceQuality "1"]
[TimeControl "5400+30"]

{[%evp 21,70,36,36,0,0,0,0,0,0,0,31,16,18,17,17,17,14,18,14,17,6,22,103,0,0,0,0,0,0,0,0,0,0,0,0,0,0,0,0,0,0,0,0,0,0,0,0,0,0,0,0]} 1. e4 {[%emt 0:10:00]} c5 {[%emt 0:04:00]} 2. Nf3 {[%emt 0:00:30]} Nc6 {[%emt 0:00:30]} 3. d4 {[%emt 0:00:30]} cxd4 {[%emt 0:00:30]} 4. Nxd4 {[%emt 0:00:30]} g6 {[%emt 0:00:30]} 5. c4 {[%emt 0:00:30]} Bg7 {[%emt 0:00:30]} 6. Be3 {[%emt 0:00:30]} Nf6 {[%emt 0:00:30]} 7. Nc3 {[%emt 0:02:30]} O-O {[%emt 0:00:00]} 8. Be2 {[%emt 0:00:30]} d6 {[%emt 0:00:00]} 9. O-O {[%emt 0:00:30]} Bd7 {[%emt 0:00:30]} 10. Rc1 {[%emt 0:08:30]} Nxd4 {[%emt 0:00:30]} 11. Bxd4 {[%emt 0:00:30]} Bc6 {[%emt 0:00:30]} 12. Qd2 {[%emt 0:02:30] Against Bh6. B38: Sicilian: Maroczy Bind with 5...Bg7 and 7...0-0.} e5 {[%emt 0:28:30]} 13. Be3 {[%emt 0:00:00]} Nxe4 {[%emt 0:02:30]} 14. Nxe4 {[%emt 0:00:00]} Bxe4 {[%emt 0:00:00]} 15. Rfd1 {[%emt 0:00:00] [#]} f5 $146 {[%emt 0:10:00][%cal Bf7f5,Bf5f4][%mdl 32] [#] Strongly threatening ...f4.} ({Predecessor:} 15... Bc6 16. Qxd6 Qh4 17. Qd2 Rad8 18. Qe1 f5 19. f3 Qxe1+ 20. Rxe1 a6 21. b3 e4 {0-1 (69) Grot,B (1768)-Markovits,A (2153) Chess.com INT 2020}) 16. f3 {[%emt 0:12:00]} Bc6 {[%emt 0:01:30]} 17. b4 {[%emt 0:05:30] Threatening b5.} ({But not} 17. Qxd6 Qxd6 18. Rxd6 e4 $15) 17... f4 {[%emt 0:06:30]} 18. Bf2 {[%emt 0:00:00] aiming for b5.} e4 {[%emt 0:00:30]} 19. fxe4 {[%emt 0:00:00]} Bxe4 {[%emt 0:03:30]} 20. Qxd6 {[%emt 0:00:30]} Qxd6 {[%emt 0:04:30]} 21. Rxd6 {[%emt 0:00:30]} Rfd8 {[%emt 0:08:30] [#]} (21... Be5 $11 22. Rd7 Bc6) 22. Rxd8+ {[%emt 0:01:30]} (22. c5 $1 $16) 22... Rxd8 $11 {[%emt 0:00:00] The position is equal.} 23. Rd1 {[%emt 0:01:30]} Rxd1+ {[%emt 0:00:00]} 24. Bxd1 {[%emt 0:00:00][%mdl 4096] Endgame KBB-KBB} a6 {[%emt 0:01:30]} 25. Bf3 {[%emt 0:01:00]} Bxf3 {[%emt 0:02:30]} 26. gxf3 {[%emt 0:00:00] KB-KB} b5 {[%emt 0:05:45]} 27. c5 {[%emt 0:05:00] Hoping for c6.} Kf7 {[%emt 0:00:36]} 28. Kf1 {[%emt 0:03:30]} Ke6 {[%emt 0:01:42]} 29. Ke2 {[%emt 0:00:30]} Kd5 {[%emt 0:00:08]} 30. Kd3 {[%emt 0:00:00]} Be5 {[%emt 0:01:37]} 31. Be1 {[%emt 0:03:00]} Bc7 {[%emt 0:01:23]} 32. Bc3 {[%emt 0:00:00]} Bb8 {[%emt 0:00:13]} 33. Bg7 {[%emt 0:00:00]} Bc7 {[%emt 0:00:05]} 34. Kc3 {[%emt 0:07:30]} a5 {[%emt 0:00:30]} 35. Kb3 {[%emt 0:03:30]} Bd8 {[%emt 0:04:49] Weighted Error Value: White=0.11 (very precise) /Black=0.11 (very precise)} 1/2-1/2

[Event "Marmaris Karya-19 GM-May 2022"]
[Site "Icmeler-Marmaris"]
[Date "2022.05.15"]
[Round "5.3"]
[White "Ozsakallioglu, Okan"]
[Black "Benidze, Davit"]
[Result "1/2-1/2"]
[ECO "B06"]
[WhiteElo "2312"]
[BlackElo "2425"]
[Annotator "TA"]
[PlyCount "62"]
[EventDate "2022.05.15"]
[EventType "schev"]
[EventCountry "TUR"]
[SourceTitle "playchess.com"]
[Source "ChessBase"]
[SourceQuality "1"]
[TimeControl "5400+30"]

{[%evp 9,62,31,54,23,62,46,41,31,76,40,40,37,41,10,8,-9,-21,-31,-33,-27,-20,-47,-11,-20,-25,-47,-20,-11,0,0,0,-8,4,0,0,0,0,0,4,10,12,13,22,10,21,21,17,26,20,18,20,18,14,14,16]} 1. e4 {[%emt 0:11:00]} g6 {[%emt 0:02:00]} 2. d4 {[%emt 0:00:30]} Bg7 {[%emt 0:00:30]} 3. Nc3 {[%emt 0:00:00]} c6 {[%emt 0:00:00]} 4. Nf3 {[%emt 0:00:00]} d6 {[%emt 0:00:00]} 5. Be3 {[%emt 0:00:30]} Qb6 {[%emt 0:00:00]} 6. Rb1 {[%emt 0:00:30] [#] B06: Modern Defence.} Qa5 $146 {[%emt 0:00:00]} ({Predecessor:} 6... Qc7 7. Qd2 b5 8. Bd3 Nd7 9. O-O Ngf6 10. h3 O-O 11. Ne2 c5 12. c3 c4 13. Bc2 {1-0 (33) Tkachiev,V (2641)-Istratescu,A (2633) Nancy 2012}) 7. b4 {[%emt 0:02:30]} Qc7 {[%emt 0:00:00]} 8. Qd2 {[%emt 0:00:30] White is slightly better.} Bg4 {[%emt 0:03:00]} 9. Ng1 {[%emt 0:02:30] White is more active.} Nf6 {[%emt 0:01:30]} 10. h3 {[%emt 0:00:30]} Bc8 {[%emt 0:00:30]} 11. g4 {[%emt 0:01:30]} O-O {[%emt 0:00:30]} 12. Bg2 {[%emt 0:00:30]} Nbd7 {[%emt 0:03:30][%cal Bb8d7,Bd7e5,Be5c4][%mdl 32]} 13. Bh6 {[%emt 0:00:30]} Bxh6 {[%emt 0:00:30]} 14. Qxh6 {[%emt 0:00:30]} a5 {[%emt 0:00:30] Hoping for ...axb4.} 15. a3 {[%emt 0:00:30]} axb4 {[%emt 0:00:30]} 16. axb4 {[%emt 0:00:00]} e5 {[%emt 0:00:30]} 17. dxe5 {[%emt 0:00:00]} Nxe5 {[%emt 0:05:30][%cal Od6d5]} 18. Nge2 {[%emt 0:01:30]} Re8 {[%emt 0:05:30][%cal Od6d5]} 19. O-O {[%emt 0:00:30]} Nc4 {[%emt 0:00:00]} 20. Nd4 {[%emt 0:04:30]} Qe7 {[%emt 0:02:00]} 21. Rfe1 {[%emt 0:03:30]} Qf8 {[%emt 0:01:30]} 22. Qxf8+ {[%emt 0:00:00]} Kxf8 {[%emt 0:00:30]} 23. f4 {[%emt 0:01:00]} Nd7 {[%emt 0:04:30]} 24. Kf2 {[%emt 0:01:30]} Ndb6 {[%emt 0:00:30]} 25. Ra1 {[%emt 0:00:00]} Bd7 {[%emt 0:01:30]} 26. Nb3 {[%emt 0:01:00]} h6 {[%emt 0:00:30]} 27. Bf1 {[%emt 0:00:30]} g5 {[%emt 0:04:30]} 28. Na5 {[%emt 0:01:30]} Nxa5 {[%emt 0:00:00]} 29. bxa5 {[%emt 0:00:00] The position is equal.} Nc8 {[%emt 0:00:00]} 30. f5 {[%emt 0:00:00]} Re5 {[%emt 0:01:30]} 31. Reb1 {[%emt 0:00:30]} Rexa5 {[%emt 0:06:30] Weighted Error Value: White=0.09 (flawless) /Black=0.08 (flawless)} 1/2-1/2

[Event "Marmaris Karya-19 GM-May 2022"]
[Site "Icmeler-Marmaris"]
[Date "2022.05.15"]
[Round "5.4"]
[White "Darban, Morteza"]
[Black "Toufighi, Homayoon"]
[Result "1/2-1/2"]
[WhiteElo "2279"]
[BlackElo "2439"]
[Annotator "TA"]
[PlyCount "18"]
[EventDate "2022.05.15"]
[EventType "schev"]
[EventCountry "TUR"]
[SourceTitle "playchess.com"]
[Source "ChessBase"]
[SourceQuality "1"]
[TimeControl "5400+30"]

{[%evp 17,18,0,22]} 1. e4 {[%emt 0:03:00]} c5 {[%emt 0:07:00]} 2. Nf3 {[%emt 0:00:00]} d6 {[%emt 0:00:30]} 3. d4 {[%emt 0:00:00]} cxd4 {[%emt 0:00:30]} 4. Nxd4 {[%emt 0:00:00]} Nf6 {[%emt 0:00:00]} 5. Nc3 {[%emt 0:01:00]} a6 {[%emt 0:00:00]} 6. Be3 {[%emt 0:00:00] [#]} Ng4 $146 {[%emt 0:00:00]} ({Predecessor:} 6... e5 7. Nb3 Be6 8. f3 Nbd7 9. g4 h6 10. Qd2 b5 11. O-O-O Nb6 12. Qf2 Rb8 13. Nc5 b4 14. Nb1 d5 15. Nxe6 fxe6 16. exd5 Nbxd5 17. Nd2 Qc7 18. Bd3 Be7 19. Bg6+ Kf8 20. Kb1 Nxe3 21. Qxe3 {1-0 (59) Dominguez Perez,L (2756)-Shankland,S (2709) Saint Louis 2022}) 7. Bc1 {[%emt 0:00:00]} Nf6 {[%emt 0:00:00]} 8. Be3 {[%emt 0:00:00]} Ng4 {[%emt 0:00:00] 8...Nbd7 is a critical line.} 9. Bc1 {[%emt 0:00:00]} Nf6 {[%emt 0:00:00]} 1/2-1/2

[Event "Marmaris Karya-19 GM-May 2022"]
[Site "Icmeler-Marmaris"]
[Date "2022.05.15"]
[Round "5.5"]
[White "Ozdemir, Serhan Berat"]
[Black "Maghalashvili, Davit"]
[Result "0-1"]
[ECO "B28"]
[WhiteElo "2117"]
[BlackElo "2456"]
[Annotator "TA"]
[PlyCount "66"]
[EventDate "2022.05.15"]
[EventType "schev"]
[EventCountry "TUR"]
[SourceTitle "playchess.com"]
[Source "ChessBase"]
[SourceQuality "1"]
[TimeControl "5400+30"]

{[%evp 10,66,28,35,50,16,57,39,37,33,44,22,30,19,22,0,52,47,64,56,61,28,85,78,94,86,110,102,105,101,112,115,115,104,111,126,455,158,154,26,15,13,48,0,0,0,0,0,0,-106,43,-183,-180,-644,-640,-747,-487,-1014,-465]} 1. e4 {[%emt 0:14:00]} c5 {[%emt 0:01:00]} 2. Nf3 {[%emt 0:00:30]} a6 {[%emt 0:00:30]} 3. c3 {[%emt 0:00:30]} Nf6 {[%emt 0:01:30]} 4. e5 {[%emt 0:00:30]} Nd5 {[%emt 0:00:30]} 5. d4 {[%emt 0:00:30]} cxd4 {[%emt 0:00:30]} 6. cxd4 {[%emt 0:00:00]} Nc6 {[%emt 0:00:30] B28: Sicilian: 2 Nf3 a6 (O'Kelly Variation).} 7. Bc4 {[%emt 0:03:00]} (7. Nc3 $5 {[%cal Rc3d5]} e6 8. Bd3 $14) 7... Nb6 {[%emt 0:06:30]} 8. Bb3 {[%emt 0:04:30] aiming for d5.} (8. Bxf7+ $5 Kxf7 9. d5 $11) 8... d5 {[%emt 0:00:30] White is slightly better.} 9. exd6 {[%emt 0:02:30]} e6 {[%emt 0:00:30] [#]} 10. Bg5 $146 {[%emt 0:04:30]} ({Predecessor:} 10. Nc3 Bxd6 11. O-O O-O 12. Re1 Ne7 13. Bg5 f6 14. Bd2 Nbd5 15. Re4 Bd7 16. Qe2 Kh8 17. Re1 Ng6 18. g3 f5 19. Nxd5 fxe4 {1-0 (83) Zhigalko,A (2563)-Kalashian,D (2379) Yerevan 2017}) 10... Qxd6 {[%emt 0:02:30]} 11. Nc3 {[%emt 0:05:30]} Be7 {[%emt 0:01:30]} 12. Be3 {[%emt 0:06:30]} Nb4 {[%emt 0:04:30]} (12... Na5 $11) 13. O-O $14 {[%emt 0:02:30]} O-O {[%emt 0:02:30]} 14. Ne5 {[%emt 0:00:30]} N4d5 {[%emt 0:07:30]} 15. Qf3 {[%emt 0:02:30]} Nxe3 {[%emt 0:24:30]} (15... a5 $11) 16. fxe3 $16 {[%emt 0:00:30][%cal Re5f7,Bf2e3,Be3e4,Be4e5][%mdl 32]} Qd8 {[%emt 0:02:30]} 17. Rad1 {[%emt 0:03:30]} ({But not} 17. Nxf7 $6 Qe8 $11) 17... Qe8 {[%emt 0:10:30]} 18. e4 {[%emt 0:12:30]} Bd7 {[%emt 0:00:30]} 19. Rd3 {[%emt 0:01:30]} Bd6 {[%emt 0:05:30]} 20. Nxd7 {[%emt 0:09:30]} Qxd7 {[%emt 0:03:30]} 21. e5 {[%emt 0:00:30]} Be7 {[%emt 0:00:30]} 22. Qh5 {[%emt 0:03:30][%cal Of1f6] Black must now prevent Rf6!} Rad8 $2 {[%emt 0:01:30][%mdl 8192] [#]} (22... g6 $16 {is more resistant.} 23. Qh6 f5) 23. Rf4 $2 {[%emt 0:00:30]} (23. Rf6 $3 $18 {[%mdl 512] and the rest is easy.}) 23... g6 {[%emt 0:07:56]} 24. Rg3 {[%emt 0:12:41]} (24. Rg4 $1 $16 {Rh3 would kill now.} Kg7 25. Rh3) 24... Kg7 $1 $11 {[%emt 0:00:40]} 25. Rfg4 {[%emt 0:02:09] White wants to play Rh3.} Rg8 {[%emt 0:03:01]} 26. Bc2 $40 {[%emt 0:02:13][%mdl 128] White attacks.} (26. Kh1 $14 Kh8 27. Qh6) 26... Kh8 {[%emt 0:02:09]} 27. Qh6 {[%emt 0:02:24]} Nc4 {[%emt 0:00:42]} 28. h4 {[%emt 0:02:00]} Bf8 {[%emt 0:04:11]} 29. Qf4 {[%emt 0:01:40] [#]} (29. Qg5 $11 {keeps the balance.}) 29... Qc7 {[%emt 0:00:10]} (29... h5 $1 $17 {[%cal Rh5g4]} 30. Qf6+ Rg7) 30. Kh2 $2 {[%emt 0:00:44] [#]} (30. Qf2 $14 {stays ahead.}) 30... f5 $1 $19 {[%emt 0:00:41]} 31. Bxf5 {[%emt 0:01:27]} (31. exf6 Qxf4 32. Rxf4) 31... exf5 {[%emt 0:00:13] Black is clearly winning.} 32. Qxf5 {[%emt 0:00:04]} Ne3 {[%emt 0:00:46]} 33. Rxg6 {[%emt 0:01:05]} (33. Qe4 $142 Nxg4+ 34. Rxg4) 33... Rxg6 {[%emt 0:00:27] Black used his chance.  Weighted Error Value: White=0.88/Black=0.46} (33... Nxf5 $2 34. Rxg8#) (33... hxg6 $142 34. Qf2 Nf5) 0-1

[Event "Marmaris Karya-19 GM-May 2022"]
[Site "Icmeler-Marmaris"]
[Date "2022.05.15"]
[Round "6.1"]
[White "Sevdimaliyev, Urfan"]
[Black "Caglar, Sila"]
[Result "1/2-1/2"]
[ECO "A29"]
[WhiteElo "2331"]
[BlackElo "2133"]
[Annotator "TA"]
[PlyCount "115"]
[EventDate "2022.05.15"]
[EventType "schev"]
[EventCountry "TUR"]
[SourceTitle "playchess.com"]
[Source "ChessBase"]
[SourceQuality "1"]
[TimeControl "5400+30"]

{[%evp 21,115,0,0,0,49,36,93,50,97,94,100,94,111,81,81,80,81,80,92,89,81,87,102,93,93,81,81,74,81,82,79,77,70,70,66,85,108,111,108,104,142,126,120,115,127,121,120,128,125,117,143,18,8,7,8,4,3,0,0,0,0,0,0,0,0,0,0,0,0,0,0,0,0,0,0,0,0,0,0,0,0,0,0,0,0,0,0,0,0,0,0,0,0,0,0,0]} 1. c4 {[%emt 0:07:00]} Nf6 {[%emt 0:02:00]} 2. g3 {[%emt 0:00:30]} d5 {[%emt 0:01:30]} 3. cxd5 {[%emt 0:00:30]} Nxd5 {[%emt 0:00:00]} 4. Bg2 {[%emt 0:00:30]} e5 {[%emt 0:00:00]} 5. Nc3 {[%emt 0:00:30]} Nb6 {[%emt 0:00:30]} 6. Nf3 {[%emt 0:00:00]} Nc6 {[%emt 0:00:00]} 7. O-O {[%emt 0:00:00]} Be7 {[%emt 0:00:00]} 8. a3 {[%emt 0:00:30]} a5 {[%emt 0:00:00]} 9. d3 {[%emt 0:03:30]} O-O {[%emt 0:00:00]} 10. Be3 {[%emt 0:00:30]} Be6 {[%emt 0:02:30]} 11. Na4 {[%emt 0:04:30]} Nd5 {[%emt 0:05:30]} 12. Bc5 {[%emt 0:02:30] A29: English Opening: Four Knights Variation with 4 g3.} b5 {[%emt 0:00:30]} (12... b6 $11 {is superior.} 13. Bxe7 Ndxe7) 13. Bxe7 $14 {[%emt 0:00:30]} Qxe7 {[%emt 0:00:00] [#]} (13... Ndxe7 $14 14. Nc5 Bd5) 14. Qc1 $146 {[%emt 0:09:30] White is better.} ({Predecessor:} 14. Rc1 Nd4 15. Nc5 Nxf3+ 16. Bxf3 Ra7 17. Nxe6 Qxe6 18. Rc5 c6 19. Qc2 Ra6 20. Rc1 {1-0 (32) Dubov,D (2699)-Aravindh,C (2641) Chess.com INT 2020}) 14... Nd4 {[%emt 0:01:00]} (14... Ra6 $14 {should be considered.} 15. Nc5 Rb6) 15. Nxd4 $16 {[%emt 0:03:30]} exd4 {[%emt 0:00:30]} 16. Nc5 {[%emt 0:00:30]} Rfd8 {[%emt 0:06:30]} 17. Nxe6 {[%emt 0:02:30]} fxe6 {[%emt 0:00:00]} 18. Qc6 {[%emt 0:01:30]} Rab8 {[%emt 0:02:00]} 19. Rfc1 {[%emt 0:02:30]} Rb6 {[%emt 0:12:30]} 20. Qc5 {[%emt 0:01:30]} Qxc5 {[%emt 0:00:30]} 21. Rxc5 {[%emt 0:00:30]} c6 {[%emt 0:00:30]} 22. Rac1 {[%emt 0:00:30]} Rd6 {[%emt 0:00:30]} 23. Kf1 {[%emt 0:00:30]} a4 {[%emt 0:00:30]} 24. Ke1 {[%emt 0:00:30]} Kf7 {[%emt 0:00:00]} 25. Kd2 {[%emt 0:10:30]} b4 {[%emt 0:08:00]} 26. Bxd5 {[%emt 0:03:30]} cxd5 {[%emt 0:01:30][%mdl 4096] Endgame KRR-KRR} 27. Rc7+ {[%emt 0:06:30]} Kf6 {[%emt 0:00:30]} 28. Ra7 {[%emt 0:01:30]} Ra6 {[%emt 0:08:30] [#]} 29. Rcc7 {[%emt 0:03:30] White is more active.} ({But not} 29. Rxa6 $6 Rxa6 30. axb4 Rb6 $11) 29... Rxa7 {[%emt 0:00:00]} 30. Rxa7 {[%emt 0:00:30]} bxa3 {[%emt 0:00:00]} 31. bxa3 {[%emt 0:00:00] KR-KR} Rb6 {[%emt 0:00:30]} 32. Kc2 {[%emt 0:03:00] Prevents Rb2+.} Rc6+ {[%emt 0:00:30]} 33. Kd1 {[%emt 0:00:00]} Rb6 {[%emt 0:00:00]} 34. Rxa4 {[%emt 0:01:00]} Rb1+ {[%emt 0:00:00]} 35. Kc2 {[%emt 0:00:00]} Ra1 {[%emt 0:00:30]} 36. Kb2 {[%emt 0:13:00] Prevents Ra2+.} (36. f3 $16) 36... Re1 $11 {[%emt 0:00:30] The position is equal.} 37. Rxd4 {[%emt 0:00:30] And now e3 would win.} Rxe2+ {[%emt 0:00:30]} 38. Kb3 {[%emt 0:00:00]} Ke5 {[%emt 0:05:30]} 39. Rf4 {[%emt 0:02:00]} g5 $1 {[%emt 0:00:00]} 40. d4+ {[%emt 0:00:30]} Kd6 {[%emt 0:00:00]} 41. Rf7 {[%emt 0:00:30]} Rd2 {[%emt 0:01:30]} 42. Kc3 {[%emt 0:03:54]} Ra2 {[%emt 0:00:00]} 43. Rxh7 {[%emt 0:00:52]} Rxf2 {[%emt 0:00:00]} 44. Rg7 {[%emt 0:04:43]} Rxh2 {[%emt 0:00:30]} 45. Rxg5 {[%emt 0:00:03]} Ra2 {[%emt 0:00:00]} 46. Kb3 {[%emt 0:00:06]} Rd2 {[%emt 0:00:00]} 47. Rg4 {[%emt 0:00:26]} Kc6 {[%emt 0:00:30]} 48. a4 {[%emt 0:00:14]} Kb6 {[%emt 0:00:30]} 49. Kc3 {[%emt 0:01:23]} Ra2 {[%emt 0:00:30]} 50. Rg6 {[%emt 0:00:17]} Ka5 {[%emt 0:00:00]} 51. g4 {[%emt 0:01:06] [#] Hoping for Rg8.} Ra3+ {[%emt 0:00:00]} 52. Kd2 {[%emt 0:00:26] Threatens to win with Rg8.} Rg3 {[%emt 0:00:30]} 53. Ke2 {[%emt 0:04:24] Strongly threatening Rg8.} Kxa4 {[%emt 0:00:30]} 54. Kf2 {[%emt 0:00:00]} Rd3 {[%emt 0:00:00]} 55. g5 {[%emt 0:00:48] Black must now prevent Rg8.} Rxd4 {[%emt 0:00:00]} 56. Rg8 {[%emt 0:01:21] aiming for g6.} Kb3 {[%emt 0:00:30]} 57. g6 {[%emt 0:01:00]} Rb4 {[%emt 0:00:30] Prevents Rb8.} (57... Rg4 $2 58. g7 $18) 58. Re8 {[%emt 0:02:01] Weighted Error Value: White=0.08 (flawless) /Black=0.06 (flawless)} 1/2-1/2

[Event "Marmaris Karya-19 GM-May 2022"]
[Site "Icmeler-Marmaris"]
[Date "2022.05.15"]
[Round "6.2"]
[White "Benidze, Davit"]
[Black "Gunduz, Umut Erdem"]
[Result "1/2-1/2"]
[WhiteElo "2425"]
[BlackElo "2316"]
[Annotator "TA"]
[PlyCount "17"]
[EventDate "2022.05.15"]
[EventType "schev"]
[EventCountry "TUR"]
[SourceTitle "playchess.com"]
[Source "ChessBase"]
[SourceQuality "1"]
[TimeControl "5400+30"]

{[%evp 9,17,0,14,0,36,-4,27,-1,31,-14]} 1. Nf3 {[%emt 0:02:00]} d5 {[%emt 0:07:00]} 2. g3 {[%emt 0:00:00]} Nf6 {[%emt 0:00:00]} 3. Bg2 {[%emt 0:00:00]} Nc6 {[%emt 0:00:00]} 4. O-O {[%emt 0:00:00]} Bf5 {[%emt 0:00:30]} 5. Nh4 {[%emt 0:00:00] [#]} Bc8 $146 {[%emt 0:00:00]} ({Predecessor:} 5... Bg6 6. Nxg6 hxg6 {½-½ (6) Karanovic,I-Savic,N Kladovo 2016}) 6. Nf3 {[%emt 0:00:00] A07: Réti Opening: New York and Capablanca Systems.} Bf5 {[%emt 0:00:00]} 7. Nh4 {[%emt 0:00:00]} Bc8 {[%emt 0:00:00]} 8. Nf3 {[%emt 0:00:00]} Bf5 {[%emt 0:00:00]} 9. Nh4 {[%emt 0:00:00] An uneventful encounter.  Weighted Error Value: White=0.27 (precise) /Black=0.19 (very precise)} 1/2-1/2

[Event "Marmaris Karya-19 GM-May 2022"]
[Site "Icmeler-Marmaris"]
[Date "2022.05.15"]
[Round "6.3"]
[White "Toufighi, Homayoon"]
[Black "Ozsakallioglu, Okan"]
[Result "1-0"]
[ECO "A36"]
[WhiteElo "2439"]
[BlackElo "2312"]
[Annotator "TA"]
[PlyCount "89"]
[EventDate "2022.05.15"]
[EventType "schev"]
[EventCountry "TUR"]
[SourceTitle "playchess.com"]
[Source "ChessBase"]
[SourceQuality "1"]
[TimeControl "5400+30"]

{[%evp 25,89,16,29,14,25,23,44,40,49,43,65,38,92,70,52,58,64,64,76,41,79,79,79,69,61,60,107,57,179,206,176,194,196,218,177,209,214,110,203,206,262,271,330,285,280,132,564,330,267,131,115,112,64,45,173,173,168,179,142,119,114,0,31,0,758,710]} 1. c4 {[%emt 0:07:00]} Nf6 {[%emt 0:01:00]} 2. Nc3 {[%emt 0:00:00]} g6 {[%emt 0:00:30]} 3. g3 {[%emt 0:01:00]} Bg7 {[%emt 0:00:00]} 4. Bg2 {[%emt 0:00:30]} O-O {[%emt 0:00:00]} 5. d3 {[%emt 0:01:30]} d6 {[%emt 0:00:30]} 6. e4 {[%emt 0:00:00]} c5 {[%emt 0:00:30]} 7. Nge2 {[%emt 0:00:00]} Nc6 {[%emt 0:00:30]} 8. O-O {[%emt 0:00:30]} a6 {[%emt 0:01:30]} 9. a3 {[%emt 0:01:30]} Rb8 {[%emt 0:00:30]} 10. Rb1 {[%emt 0:00:30]} b5 {[%emt 0:02:30]} 11. cxb5 {[%emt 0:00:00]} axb5 {[%emt 0:00:00]} 12. b4 {[%emt 0:00:00]} cxb4 {[%emt 0:00:00]} 13. axb4 {[%emt 0:00:00]} Bg4 {[%emt 0:00:30]} 14. h3 {[%emt 0:06:00] A36: Symmetrical English vs ...g6: 4 Bg2 Bg7.} Bxe2 {[%emt 0:00:30]} 15. Nxe2 {[%emt 0:00:30]} Nd7 {[%emt 0:02:30]} 16. Be3 {[%emt 0:01:30] White is slightly better.} e5 {[%emt 0:00:30] [#]} 17. f4 $146 {[%emt 0:08:30][%cal Bf2f4,Bf4f5][%mdl 32]} ({Predecessor:} 17. Kh2 Nd4 18. f4 Nb6 19. f5 Na4 20. Qd2 Rc8 21. Nxd4 exd4 22. Bg5 f6 23. Bh6 Bxh6 24. Qxh6 {0-1 (57) Lee,J (2369)-Gan Od,S (2320) Chess.com INT 2020}) 17... Nd4 {[%emt 0:00:30]} 18. f5 {[%emt 0:00:30]} Bf6 {[%emt 0:07:30]} (18... d5 $14) 19. Kh1 {[%emt 0:02:30]} (19. fxg6 {is more complex.} fxg6 20. Nxd4 exd4 21. Bh6) 19... Nxe2 {[%emt 0:00:00]} 20. Qxe2 {[%emt 0:00:30]} Bg5 $1 {[%emt 0:00:00]} 21. Bg1 {[%emt 0:00:30] White is more active.} Bh6 {[%emt 0:03:30]} 22. h4 {[%emt 0:00:30]} Rc8 {[%emt 0:00:30]} 23. Bh3 {[%emt 0:00:30]} Rc3 {[%emt 0:00:30]} 24. Ra1 {[%emt 0:00:30]} Nf6 {[%emt 0:01:30]} 25. Rf3 {[%emt 0:04:30]} Qc8 {[%emt 0:01:30]} (25... Nh5 $14) 26. Qf1 {[%emt 0:01:30]} (26. g4 $1 $16 {[%cal Rg4g5] Hoping for g5.} Bf4 27. g5) 26... g5 {[%emt 0:04:30]} ({Black should try} 26... Qd8 $1 $14) 27. Be3 $18 {[%emt 0:01:30]} g4 {[%emt 0:00:30] [#]} 28. Bxh6 {[%emt 0:00:30]} gxf3 {[%emt 0:00:00]} 29. Qxf3 {[%emt 0:00:30] aiming for Qe3.} (29. Bxf8 Kxf8 30. g4 (30. Qxf3 Rc1+ 31. Rxc1 Qxc1+ 32. Bf1 Qe1 $17) 30... f2 $11) 29... Kh8 {[%emt 0:01:00]} 30. Bxf8 {[%emt 0:02:30]} Qxf8 {[%emt 0:00:30]} 31. Qe3 {[%emt 0:02:30] Prevents Qh6.} ({White has to play} 31. g4 $1 $18 {[%cal Rg4g5]}) 31... Ng8 {[%emt 0:00:30]} (31... h5 $16) 32. g4 {[%emt 0:00:30][%cal Bg3g4,Bg4g5][%mdl 32]} Qc8 {[%emt 0:00:30]} 33. g5 {[%emt 0:01:30]} Rc2 {[%emt 0:01:30]} 34. f6 {[%emt 0:01:30]} Qc3 {[%emt 0:00:00]} 35. Ra8 {[%emt 0:00:30]} ({Weaker is} 35. Rb1 Rd2 36. Bf1 Ra2 $16) (35. Rg1 $18) 35... Rd2 $2 {[%emt 0:07:00][%mdl 8192]} (35... Qxb4 $16 {is more resistant.} 36. Bg2 Qb2) 36. Bf1 {[%emt 0:03:30] White threatens Qa7 and mate.} Qc1 {[%emt 0:00:00] [#]} 37. Qh3 $40 {[%emt 0:13:30][%mdl 128] White has strong attack.} (37. Qf3 $1 $18 {and the rest is easy.} Qe1 38. Qh3) 37... Rc2 $16 {[%emt 0:04:00] [#]} 38. Ra7 $1 {[%emt 0:09:30]} Qf4 {[%emt 0:01:30][%cal Oc2h2]} 39. Ra1 $1 {[%emt 0:00:30] And now Bg2 would win.} ({Much worse is} 39. Rxf7 Rh2+ 40. Qxh2 Qxf1+ 41. Qg1 Qh3+ 42. Qh2 Qf1+ 43. Qg1 Qh3+ 44. Qh2 Qf1+ $11) 39... Rb2 {[%emt 0:06:30]} (39... Rc1 $1 $14 40. Rxc1 Qxc1) 40. Bg2 $18 {[%emt 0:01:30]} Rxb4 {[%emt 0:00:30]} 41. Rf1 {[%emt 0:04:30]} Qd2 {[%emt 0:00:30]} 42. Kh2 {[%emt 0:02:30]} Rb2 {[%emt 0:01:30]} 43. Qg4 {[%emt 0:00:30]} (43. Qg3 $16) 43... Rc2 {[%emt 0:06:30]} (43... b4 $5 {[%cal Rb4b3]}) 44. Ra1 {[%emt 0:02:30] Black must now prevent Ra7.} b4 $2 {[%emt 0:03:30][%mdl 8192]} (44... Ra2 $11 45. Rxa2 Qxa2) 45. Ra7 {[%emt 0:01:30] Weighted Error Value: White=0.32/Black=0.45} 1-0